bitfinex/quotes_ETHUSD_20240921
["timestamp","ask_amount","ask_price","bid_price","bid_amount"]
[1726931404601,4.45513,2560.8,2560.3,3.90572]
[1726931404900,4.45513,2560.8,2560.2,6.33832]
[1726931405200,3.90522,2560.7,2560.2,6.33832]
[1726931405409,0.55,2560.6,2560.2,6.33832]
[1726931405900,0.55,2560.6,2560.2,6.33822]
[1726931406105,0.55,2560.6,2560.2,7.36643912]
[1726931408803,0.55,2560.6,2560.2,11.27228912]
[1726931409106,0.55,2560.6,2560.2,7.36643912]
[1726931409819,0.55,2560.7,2560.2,1.02821912]
[1726931410013,0.55,2560.8,2560.5,6.33157]
[1726931410170,4.7621588,2560.9,2560.5,6.33157]
[1726931410578,1.7621588,2560.9,2560.6,3.9053]
[1726931410883,1.7621588,2560.9,2560.6,3.99235512]
[1726931411079,1.7621588,2560.9,2560.6,3.99230512]
[1726931411583,1.7621588,2560.9,2560.6,0.08705512]
[1726931411906,0.55,2560.8,2560.6,0.08705512]
[1726931412283,4.45512,2560.8,2560.6,0.08705512]
[1726931412485,4.45512,2560.8,2560.3,6.33186]
[1726931412789,4.45512,2560.8,2560.4,0.08722353]
[1726931413486,4.4551,2560.8,2560.4,0.08722353]
[1726931415988,8.36021,2560.8,2560.4,0.08722353]
[1726931416212,4.4551,2560.8,2560.4,0.08722353]
[1726931419018,8.36022,2560.8,2560.4,0.08722353]
[1726931419183,4.4551,2560.8,2560.4,0.08722353]
[1726931420039,8.36025,2560.8,2560.4,0.08722353]
[1726931420696,4.45548,2560.5,2560.4,0.08722353]
[1726931420896,8.17094624,2560.5,2560.4,0.08722353]
[1726931421148,3.90564,2560.4,2560.1,0.0378412]
[1726931421344,4.45589,2560.3,2560.1,0.0378412]
[1726931421630,0.55,2560.3,2560.2,0.0872147]
[1726931421834,5.27290062,2560.3,2560.2,0.0872147]
[1726931423350,10.75052566,2560.3,2560.2,0.0872147]
[1726931423642,11.98836686,2560.3,2560.2,0.0872147]
[1726931423850,7.45594,2560.2,2560.1,0.0378412]
[1726931424060,9.61215057,2560.2,2560.1,0.0378412]
[1726931424204,13.32761681,2560.2,2560.1,0.0378412]
[1726931425655,15.08977561,2560.2,2560.1,0.0378412]
[1726931425974,15.08977561,2560.2,2558.6,0.0378412]
[1726931425975,0.55,2559.7,2558.6,0.0378412]
[1726931426109,7.45823,2558.7,2558.6,0.0378412]
[1726931426444,8.96640762,2558.7,2558.6,0.0378412]
[1726931427329,8.96640762,2558.7,2557.0,0.0378412]
[1726931427330,19.74,2558.1,2557.0,0.0378412]
[1726931427576,19.74,2558.1,2557.4,0.12834006]
[1726931427577,4.46006,2557.5,2557.4,0.12834006]
[1726931427873,4.46006,2557.5,2556.6,0.016424]
[1726931427874,0.54865334,2557.3,2556.6,0.016424]
[1726931428146,3.0,2557.1,2556.7,0.05909521]
[1726931428742,3.54865334,2557.3,2556.7,0.05909521]
[1726931428950,6.91011,2557.5,2556.8,3.9111]
[1726931429130,3.0,2557.7,2557.0,3.91082]
[1726931429448,3.0,2557.7,2556.8,3.9111]
[1726931429449,3.0,2557.5,2557.1,0.0595628]
[1726931429741,4.46035,2557.4,2556.7,3.91116]
[1726931429906,4.46035,2557.4,2557.2,0.05956011]
[1726931430111,4.46035,2557.4,2556.7,3.91115]
[1726931430332,4.46035,2557.4,2556.8,0.05957085]
[1726931430552,0.55,2557.4,2556.8,2.44341085]
[1726931430817,4.46022,2557.4,2556.8,2.4607695]
[1726931430969,0.54729761,2557.4,2556.8,2.4607695]
[1726931431170,3.90993,2557.6,2556.9,3.91097]
[1726931431171,3.0,2557.6,2556.9,3.91097]
[1726931431522,3.0,2557.9,2557.0,0.05896681]
[1726931431841,3.0,2557.9,2557.2,3.91042]
[1726931432030,3.0,2557.9,2557.3,0.13289163]
[1726931432233,0.690931,2557.8,2557.3,0.13289163]
[1726931432421,0.690931,2557.8,2557.4,0.13288605]
[1726931432822,0.55,2557.7,2557.1,3.91065]
[1726931433024,0.55,2557.8,2557.5,0.13288048]
[1726931433225,0.55,2557.8,2557.0,7.82141]
[1726931433468,0.55,2557.8,2557.0,3.9107]
[1726931433469,2.05842662,2557.8,2557.0,3.9107]
[1726931433618,2.05842662,2557.8,2557.1,0.13290278]
[1726931434025,2.05842662,2557.8,2557.1,4.04357278]
[1726931434872,2.05842662,2557.8,2557.2,3.91052]
[1726931435080,0.55,2557.8,2557.3,0.13289163]
[1726931435238,0.55,2557.9,2557.2,3.91052]
[1726931435431,3.55,2558.1,2557.4,6.31202]
[1726931435632,3.55,2558.1,2557.5,3.91006]
[1726931435935,4.8436645,2558.1,2557.5,0.13288048]
[1726931436654,3.55,2557.9,2557.5,0.13288048]
[1726931436874,0.55,2557.9,2557.5,0.13288048]
[1726931437169,4.45933,2558.0,2557.5,0.13288048]
[1726931437372,0.55,2557.8,2557.5,0.13288048]
[1726931438047,0.55,2558.0,2557.5,0.13288048]
[1726931438250,4.60149133,2558.0,2557.5,0.13288048]
[1726931439641,4.60149133,2558.0,2557.5,4.04291048]
[1726931439836,8.51080133,2558.0,2557.5,0.13288048]
[1726931440684,4.60149133,2558.0,2557.6,3.90979]
[1726931440854,0.55,2558.0,2557.6,3.90979]
[1726931441175,0.55,2558.0,2557.7,0.13299321]
[1726931443342,0.55,2558.0,2557.5,3.91002]
[1726931443537,0.55,2558.0,2557.6,0.1329598]
[1726931443733,4.81618745,2558.0,2557.6,0.1329598]
[1726931444341,1.81618745,2558.0,2557.6,0.1329598]
[1726931444543,1.81618745,2558.0,2557.6,4.0428498]
[1726931445375,1.81618745,2558.0,2557.6,0.1329598]
[1726931445763,0.55,2557.8,2557.6,0.1329598]
[1726931446261,0.55,2557.8,2557.4,6.31192]
[1726931446762,0.55,2557.8,2557.5,0.13296892]
[1726931448539,0.55,2557.6,2557.5,0.13296892]
[1726931448735,0.55,2557.5,2557.2,3.91042]
[1726931449044,0.55,2557.5,2557.1,2.4828]
[1726931449045,4.46015,2557.5,2557.1,2.4828]
[1726931449269,8.816385,2557.5,2557.1,2.4828]
[1726931449605,8.816325,2557.5,2557.1,2.4828]
[1726931449804,3.9105,2557.3,2556.7,2.4828]
[1726931450005,0.55,2557.2,2556.7,6.39404]
[1726931450166,3.91107,2556.9,2556.7,2.4828]
[1726931450365,0.55,2556.8,2556.7,2.4828]
[1726931450672,4.46129,2556.7,2556.6,0.016424]
[1726931452407,0.55,2556.7,2556.6,0.016424]
[1726931453076,4.46129,2556.7,2556.6,0.016424]
[1726931453363,5.298532,2556.7,2556.6,0.016424]
[1726931453510,8.298532,2556.7,2556.6,0.016424]
[1726931453673,4.387242,2556.7,2556.6,0.016424]
[1726931453869,8.298532,2556.7,2556.6,0.016424]
[1726931454395,8.298532,2556.7,2555.3,0.0591784]
[1726931454396,0.55,2555.9,2555.3,0.0591784]
[1726931454581,0.55,2555.7,2555.3,0.0591784]
[1726931454786,0.55,2555.9,2555.3,3.9724984]
[1726931454995,0.55,2555.9,2555.3,0.0591784]
[1726931455201,0.55,2555.9,2555.4,0.10769471]
[1726931455498,0.55,2555.5,2555.4,0.10769471]
[1726931456012,0.55,2555.7,2555.4,0.10769471]
[1726931456314,0.55,2555.5,2555.4,0.10769471]
[1726931456671,0.55,2555.7,2555.4,0.10769471]
[1726931458327,0.55,2555.8,2555.4,0.10769471]
[1726931458702,0.55,2555.8,2555.4,4.02087471]
[1726931459329,0.55,2555.9,2555.5,2.4828]
[1726931459493,0.55,2556.0,2555.6,4.02084072]
[1726931460507,0.55,2556.0,2555.6,0.10799072]
[1726931460697,0.55,2556.0,2555.7,3.91268]
[1726931461040,8.45683944,2556.6,2555.9,2.319]
[1726931461041,9.08568935,2556.6,2555.9,2.319]
[1726931461186,0.8298532,2556.6,2556.0,3.91226]
[1726931461380,0.8298532,2556.6,2556.1,3.91209]
[1726931461608,0.8298532,2556.6,2556.1,3.91217]
[1726931461930,4.54531944,2556.6,2556.2,0.10786188]
[1726931462115,4.54531944,2556.6,2556.0,3.91226]
[1726931462116,5.01729902,2556.5,2556.0,3.91226]
[1726931462314,0.55,2556.4,2556.1,0.10786746]
[1726931462690,3.91205,2556.2,2556.1,0.10786746]
[1726931462886,3.91205,2556.2,2555.6,3.91285]
[1726931462887,7.46205,2556.2,2555.6,6.23185]
[1726931463091,0.55,2556.1,2555.6,6.23185]
[1726931463344,1.66775162,2556.1,2555.7,0.10770267]
[1726931464524,0.55,2556.1,2555.7,4.02038267]
[1726931464737,0.55,2556.2,2555.7,4.02038267]
[1726931464942,0.55,2556.2,2555.7,7.93309267]
[1726931465151,4.46191,2556.3,2555.7,4.02042267]
[1726931465308,3.0,2556.2,2555.7,4.02041267]
[1726931465508,0.55,2556.1,2555.8,3.91258]
[1726931465709,0.55,2556.3,2555.9,4.01683624]
[1726931465927,4.95449141,2556.3,2555.9,4.01685624]
[1726931466146,0.55,2556.3,2555.9,0.10436624]
[1726931466323,0.55,2556.3,2556.2,2.4082]
[1726931466537,3.91141,2556.7,2556.2,2.5125495]
[1726931466743,6.49367735,2557.0,2556.2,0.1043495]
[1726931466744,3.91169,2556.5,2556.2,0.1043495]
[1726931466946,3.91169,2556.5,2555.8,2.4082]
[1726931467255,0.76271562,2556.5,2556.0,3.91227]
[1726931467411,3.76271562,2556.5,2556.1,3.91213]
[1726931467615,3.76271562,2556.5,2556.1,4.01647096]
[1726931467816,0.55,2556.4,2556.1,0.10434096]
[1726931468429,4.46179,2556.4,2556.1,0.10434096]
[1726931468583,0.55,2556.2,2556.1,0.10434096]
[1726931468740,0.55,2556.2,2555.8,6.32077]
[1726931468936,0.55,2556.2,2555.9,0.10426034]
[1726931469177,4.46205,2556.2,2555.9,0.10426034]
[1726931470039,8.37419,2556.2,2555.9,0.10426034]
[1726931470337,4.46205,2556.2,2555.9,0.10426034]
[1726931470575,5.38168506,2556.2,2555.9,0.10426034]
[1726931470873,9.29383506,2556.2,2555.9,0.10426034]
[1726931471075,5.38168506,2556.2,2555.9,0.10426034]
[1726931471280,0.55,2556.3,2555.9,0.10426034]
[1726931471782,0.55,2556.4,2556.0,3.91222]
[1726931472077,0.55,2556.4,2556.0,7.8245]
[1726931472297,0.55,2556.4,2556.0,3.91222]
[1726931472868,0.55,2556.4,2556.1,0.10431625]
[1726931473468,4.26546624,2556.4,2556.1,0.10431625]
[1726931473667,0.55,2556.2,2555.8,6.32078]
[1726931474086,0.55,2556.2,2555.9,0.10432741]
[1726931475489,4.46182,2556.4,2555.9,0.10432741]
[1726931476188,0.55,2556.4,2555.9,4.01675741]
[1726931476576,0.55,2556.4,2555.9,0.10432741]
[1726931476577,1.36771562,2556.4,2555.9,0.10432741]
[1726931476776,0.55,2556.2,2555.9,0.10432741]
[1726931477095,3.91198,2556.3,2555.9,0.10432741]
[1726931479285,3.91229,2556.1,2555.9,0.10432741]
[1726931479606,5.03006562,2556.1,2555.9,0.10432741]
[1726931480010,7.26546624,2556.0,2555.9,0.10432741]
[1726931480174,12.93998504,2556.0,2555.9,0.10432741]
[1726931480375,3.91305,2555.6,2555.3,0.0591784]
[1726931480577,7.82611,2555.6,2555.4,0.10096713]
[1726931481068,3.91312,2555.5,2555.4,0.10096713]
[1726931482303,7.62837624,2555.7,2555.4,0.10096713]
[1726931482477,8.17613874,2555.7,2555.4,0.10096713]
[1726931482676,3.91312,2555.6,2555.4,0.10096713]
[1726931482887,3.91312,2555.5,2555.4,0.10096713]
[1726931483285,11.17858624,2555.5,2555.4,0.10096713]
[1726931483506,12.74251911,2555.5,2555.4,0.10096713]
[1726931483662,7.46328,2555.4,2555.3,0.0591784]
[1726931484284,9.2254388,2555.4,2555.3,0.0591784]
[1726931485174,7.46328,2555.4,2555.3,0.0591784]
[1726931486396,11.17874624,2555.4,2555.3,0.0591784]
[1726931486722,13.02054203,2555.4,2555.3,0.0591784]
[1726931488264,14.78270083,2555.4,2555.3,0.0591784]
[1726931488712,3.91404,2554.9,2554.8,0.005]
[1726931488916,9.2261988,2554.9,2554.8,0.005]
[1726931489215,14.25567492,2554.9,2554.8,0.005]
[1726931490308,14.25567492,2554.9,2553.8,0.0404685]
[1726931490309,2.346,2554.7,2553.8,0.0404685]
[1726931490605,3.91536,2554.1,2553.8,0.0404685]
[1726931490965,0.55,2554.0,2553.8,0.0404685]
[1726931491144,0.55,2554.0,2553.9,0.07924876]
[1726931491431,3.71546624,2554.2,2553.9,0.07924876]
[1726931491744,3.0,2554.5,2554.0,2.4782]
[1726931491745,3.71546624,2554.4,2554.0,2.4782]
[1726931492051,7.63030624,2554.4,2554.1,0.07936035]
[1726931492257,6.71546624,2554.2,2554.1,0.07936035]
[1726931492424,3.0,2554.3,2554.1,0.07936035]
[1726931492746,8.69341686,2554.4,2554.2,0.07700925]
[1726931492747,3.91492,2554.4,2554.2,0.07700925]
[1726931492904,7.63038624,2554.4,2553.8,2.5186685]
[1726931493102,7.63038624,2554.4,2553.9,0.07700153]
[1726931494007,7.63037624,2554.4,2553.9,0.07700153]
[1726931494506,3.91515,2554.2,2553.9,0.07700153]
[1726931494925,0.55,2554.3,2553.9,0.07700153]
[1726931495308,4.465,2554.3,2553.9,0.07700153]
[1726931495853,3.91477,2554.5,2553.9,0.07700153]
[1726931496145,3.91505,2554.3,2553.9,0.07700153]
[1726931496438,3.91505,2554.3,2553.8,2.5186685]
[1726931496940,3.91505,2554.3,2553.9,0.07694557]
[1726931497259,3.91502,2554.3,2553.9,0.07694557]
[1726931498153,6.91444,2554.7,2553.9,0.07694557]
[1726931498485,6.91444,2554.7,2553.9,5.03514698]
[1726931498662,6.91444,2554.7,2554.0,2.4782]
[1726931498950,6.91444,2554.7,2554.1,3.99205439]
[1726931499241,3.91466,2554.5,2554.1,0.07693439]
[1726931499910,0.55,2554.6,2554.1,0.07693439]
[1726931500116,4.46455,2554.6,2554.1,0.07693439]
[1726931500410,0.55,2554.6,2554.1,3.99217439]
[1726931500862,6.91444,2554.7,2554.2,3.91503]
[1726931501153,3.91412,2554.9,2554.3,2.4753218]
[1726931501154,3.0,2554.8,2554.3,2.4753218]
[1726931501357,0.55,2554.7,2554.3,2.4753218]
[1726931502058,0.61341636,2555.2,2554.7,3.91434]
[1726931502276,2.47128958,2555.2,2554.7,3.91424]
[1726931502427,3.91367,2555.2,2554.8,0.07673443]
[1726931502623,3.91348,2555.3,2554.8,0.07673443]
[1726931502868,3.91348,2555.3,2554.7,3.91424]
[1726931503070,3.91348,2555.3,2554.9,0.07648754]
[1726931503360,3.91348,2555.3,2555.0,0.07648195]
[1726931503361,3.91385,2555.1,2555.0,0.07648195]
[1726931503563,3.0,2555.1,2554.6,6.31286]
[1726931503867,6.91377,2555.1,2554.7,0.07649871]
[1726931506030,3.91392,2555.0,2554.7,0.07649871]
[1726931506367,3.91405,2554.9,2554.7,0.07649871]
[1726931506929,10.82763,2555.1,2554.7,0.07649871]
[1726931507132,0.55,2555.2,2554.7,3.99082871]
[1726931507432,3.91319,2555.5,2554.9,3.91396]
[1726931507666,3.91289,2555.7,2554.9,3.71546624]
[1726931507834,3.91234,2556.1,2555.5,3.91299]
[1726931508032,18.70367735,2556.9,2555.6,2.3954]
[1726931508033,3.91175,2556.4,2555.6,2.3954]
[1726931508269,3.91097,2557.0,2556.2,3.91205]
[1726931508434,3.91122,2556.8,2556.2,6.30745]
[1726931508644,0.56731288,2556.9,2556.3,0.07622762]
[1726931508958,3.91144,2556.6,2556.3,0.07622762]
[1726931509155,3.91137,2556.7,2556.2,2.3954]
[1726931509566,3.91163,2556.5,2556.3,0.07340778]
[1726931509762,3.91163,2556.5,2556.2,2.3954]
[1726931509966,3.91163,2556.5,2556.3,0.07340778]
[1726931510156,3.91163,2556.5,2556.2,2.3954]
[1726931510371,3.91163,2556.5,2556.3,0.07340778]
[1726931510558,3.91163,2556.5,2556.2,2.3954]
[1726931510875,0.56731288,2556.9,2556.2,6.30742]
[1726931510876,3.91116,2556.8,2556.2,6.30742]
[1726931511053,3.91132,2556.7,2556.3,0.07340778]
[1726931511444,3.91132,2556.7,2556.2,2.3954]
[1726931511780,3.91132,2556.7,2556.3,0.07325763]
[1726931511946,3.91132,2556.7,2556.2,2.3954]
[1726931512314,4.46187,2556.4,2556.2,2.3954]
[1726931512580,3.91233,2556.1,2555.9,2.3954]
[1726931512768,3.91221,2556.1,2556.0,0.07262109]
[1726931512942,3.91221,2556.1,2555.9,2.3954]
[1726931513144,3.91196,2556.3,2556.0,0.07262109]
[1726931513377,3.91221,2556.1,2556.0,0.07262109]
[1726931513585,0.446196,2556.2,2556.0,0.07262109]
[1726931513955,4.358256,2556.2,2556.0,0.07262109]
[1726931514164,0.446196,2556.2,2556.0,0.07262109]
[1726931514648,4.358346,2556.2,2556.0,0.07262109]
[1726931515153,0.446196,2556.2,2556.0,0.07262109]
[1726931515644,3.91196,2556.3,2556.0,0.07262109]
[1726931515843,7.302502,2556.7,2556.0,0.07262109]
[1726931516078,3.91168,2556.5,2556.0,0.07262109]
[1726931516265,3.91168,2556.5,2556.0,3.98496109]
[1726931516469,3.91168,2556.5,2556.0,0.07262109]
[1726931516777,4.7330982,2556.5,2556.0,0.07262109]
[1726931517591,0.8214182,2556.5,2556.0,3.98488109]
[1726931519070,0.8214182,2556.5,2556.1,3.91218]
[1726931519241,0.55,2556.6,2556.1,3.91218]
[1726931519447,0.55,2556.6,2556.1,7.8243]
[1726931519643,3.91104,2556.9,2556.3,2.2688]
[1726931519874,0.55,2556.8,2556.3,2.2688]
[1726931520088,6.91077,2557.1,2556.5,3.9115]
[1726931520258,3.91091,2557.0,2556.3,10.09238]
[1726931520463,4.66719048,2557.1,2556.7,2.2688]
[1726931520691,4.66710048,2557.1,2556.7,2.2688]
[1726931520876,8.57787048,2557.1,2556.7,2.2688]
[1726931521202,4.66710048,2557.1,2556.8,0.07251362]
[1726931521354,0.4707569,2557.0,2556.8,0.07251362]
[1726931521690,0.4707569,2557.0,2556.7,2.2688]
[1726931521848,0.4707569,2557.0,2556.9,0.07250804]
[1726931522053,0.4707569,2557.0,2556.8,0.07251362]
[1726931522410,0.0404685,2557.2,2556.9,0.07250804]
[1726931522411,3.9510185,2557.2,2556.9,0.07250804]
[1726931522574,0.0404685,2557.2,2556.9,0.07250804]
[1726931523300,0.0404685,2557.2,2556.9,3.91098]
[1726931523453,0.0404685,2557.2,2556.8,3.91102]
[1726931525187,0.0404685,2557.2,2557.1,3.91068]
[1726931525533,0.0404685,2557.2,2557.1,7.21085219]
[1726931525680,0.0404685,2557.2,2557.1,11.87665729]
[1726931525884,0.0404685,2557.2,2557.1,11.79846064]
[1726931526105,6.49367735,2557.8,2557.7,6.19176]
[1726931526324,0.0404685,2558.8,2557.9,3.90945]
[1726931526325,0.0404685,2558.0,2557.9,3.90945]
[1726931526540,0.0404685,2558.0,2557.9,6.26962057]
[1726931527588,6.49367735,2558.7,2558.3,3.90877]
[1726931527838,6.49367735,2558.7,2558.4,2.282]
[1726931527839,0.007293,2558.7,2558.4,2.282]
[1726931528134,0.007293,2558.7,2558.5,3.90841]
[1726931528681,0.007293,2558.7,2558.5,3.90839]
[1726931528922,0.007293,2558.7,2558.4,2.5102]
[1726931529225,0.007293,2558.7,2558.6,3.90838]
[1726931529522,0.007293,2558.7,2558.4,6.41875]
[1726931529728,0.007293,2558.7,2558.5,1.10063585]
[1726931530040,0.007293,2558.7,2558.4,6.41886]
[1726931530244,0.007293,2558.7,2558.6,3.90838]
[1726931530384,0.007293,2558.7,2558.4,6.41879]
[1726931530833,0.007293,2558.7,2558.4,2.5102]
[1726931531124,0.007293,2558.7,2558.4,2.282]
[1726931531327,3.915653,2558.7,2558.4,2.282]
[1726931531632,0.007293,2558.7,2558.4,2.282]
[1726931533111,0.007293,2558.7,2558.5,0.07145616]
[1726931533311,0.007293,2558.7,2558.4,2.282]
[1726931533521,0.007293,2558.7,2558.6,0.07145407]
[1726931533724,0.007293,2558.7,2558.5,0.07077968]
[1726931533909,0.007293,2558.7,2558.6,0.07077411]
[1726931534422,0.007293,2558.7,2558.6,0.07078108]
[1726931534731,0.007293,2558.7,2558.4,2.282]
[1726931535026,3.915523,2558.7,2558.5,0.07078665]
[1726931536236,0.007293,2558.7,2558.5,0.07078665]
[1726931537127,4.465553,2558.7,2558.5,0.07078665]
[1726931537543,4.465563,2558.7,2558.5,0.07078665]
[1726931537838,0.557293,2558.7,2558.5,0.07078665]
[1726931541453,4.465543,2558.7,2558.5,0.07078665]
[1726931541613,0.557293,2558.7,2558.5,0.07078665]
[1726931541961,0.007293,2558.7,2558.5,0.30606532]
[1726931542101,0.007293,2558.7,2558.6,6.03235626]
[1726931542301,0.007293,2558.7,2558.6,9.94073626]
[1726931542502,0.007293,2558.7,2558.6,10.00911787]
[1726931542752,0.007293,2558.7,2558.6,11.42440052]
[1726931544045,0.007293,2558.7,2558.6,7.51602052]
[1726931545063,0.007293,2558.7,2558.6,3.79596426]
[1726931546443,0.007293,2558.7,2558.6,2.38068161]
[1726931556063,0.007293,2558.7,2558.6,6.10073787]
[1726931556265,0.007293,2558.7,2558.6,10.00911787]
[1726931566185,0.007293,2558.7,2558.6,13.00911787]
[1726931566337,6.49367735,2559.2,2559.1,6.26712]
[1726931566507,0.0465352,2559.3,2559.2,3.90747]
[1726931567019,0.0465352,2559.3,2559.2,3.97547677]
[1726931567398,0.0465352,2559.3,2559.2,0.06800677]
[1726931569132,0.0465352,2559.3,2559.2,3.97547677]
[1726931576457,0.0465352,2559.3,2559.2,0.06800677]
[1726931576828,3.9538452,2559.3,2558.9,3.90791]
[1726931577147,3.9538452,2559.3,2559.0,0.06773584]
[1726931580871,0.0465352,2559.3,2559.0,4.18535668]
[1726931581075,0.0465352,2559.3,2559.1,3.90762]
[1726931581367,0.0465352,2559.3,2559.2,0.06782917]
[1726931583558,0.03616542,2559.3,2559.2,0.06782917]
[1726931584279,0.03616542,2559.3,2559.2,2.52182917]
[1726931584569,0.03616542,2559.3,2559.2,3.18577417]
[1726931585146,0.03616542,2559.3,2559.2,2.52182917]
[1726931585948,0.03616542,2559.3,2559.2,0.06782917]
[1726931586350,3.94360542,2559.3,2558.8,6.1641]
[1726931586577,3.94360542,2559.3,2559.2,0.06782917]
[1726931586782,3.94360542,2559.3,2558.8,6.1641]
[1726931586953,3.94360542,2559.3,2559.2,0.06785354]
[1726931587153,3.94360542,2559.3,2558.8,7.54333163]
[1726931587448,0.03616542,2559.3,2558.9,3.9079]
[1726931587666,0.03616542,2559.3,2559.0,0.06791343]
[1726931588276,3.94357542,2559.3,2559.0,0.06791343]
[1726931588446,3.94357542,2559.3,2558.8,3.63533163]
[1726931588447,3.94136972,2559.3,2558.8,2.2561]
[1726931588753,3.94136972,2559.3,2558.9,0.067919]
[1726931589537,0.03395972,2559.3,2558.9,0.067919]
[1726931589779,0.03395972,2559.3,2558.9,3.975739]
[1726931590684,3.94129972,2559.3,2558.9,0.067919]
[1726931591269,0.03395972,2559.3,2559.0,3.72005626]
[1726931591576,0.03395972,2559.3,2559.1,0.06789045]
[1726931592154,3.94129972,2559.3,2559.1,0.06789045]
[1726931592544,3.94129972,2559.3,2558.8,2.2561]
[1726931592771,3.94129972,2559.3,2558.9,3.90792]
[1726931592978,3.94129972,2559.3,2559.2,0.06788488]
[1726931593178,3.94129972,2559.3,2558.9,3.90792]
[1726931593380,3.94129972,2559.3,2559.2,0.06788488]
[1726931593702,3.94129972,2559.3,2559.2,0.06785024]
[1726931594485,3.94129972,2559.3,2558.9,3.90792]
[1726931594775,3.94129972,2559.3,2559.0,0.06786138]
[1726931594979,0.03395972,2559.3,2559.0,0.06786138]
[1726931599146,0.81878269,2559.3,2559.0,0.06786138]
[1726931599346,3.90762,2559.1,2559.0,0.06786138]
[1726931599653,4.45762,2559.1,2559.0,0.0656306]
[1726931599846,4.45762,2559.1,2558.5,3.90845]
[1726931600072,4.45762,2559.1,2558.6,0.06565287]
[1726931600526,4.49157972,2559.1,2558.6,0.06565287]
[1726931601776,3.9078,2559.0,2558.6,0.06565287]
[1726931602611,3.90802,2558.9,2558.6,0.06565287]
[1726931602788,0.55,2558.9,2558.6,0.06565287]
[1726931603091,0.55,2558.9,2557.4,2.3295]
[1726931603092,3.90949,2557.9,2557.4,2.3295]
[1726931603527,3.90961,2557.8,2557.3,3.91024]
[1726931603724,3.90949,2557.9,2557.3,3.91024]
[1726931604076,7.62901626,2558.3,2557.3,3.91024]
[1726931604394,3.90933,2558.0,2557.5,3.91006]
[1726931604577,3.90933,2558.0,2557.3,3.91024]
[1726931604578,3.90946,2557.9,2557.3,3.91024]
[1726931604774,3.90963,2557.8,2557.4,0.623974]
[1726931605603,3.90963,2557.8,2557.2,2.3295]
[1726931605604,3.90979,2557.7,2557.2,2.3295]
[1726931606016,3.91015,2557.5,2556.9,6.19721]
[1726931606223,3.91025,2557.4,2556.9,2.2863]
[1726931606410,3.91015,2557.5,2556.9,6.19724]
[1726931606585,7.82032,2557.5,2557.0,0.619724]
[1726931606917,3.91015,2557.5,2557.0,0.619724]
[1726931607119,4.45992,2557.6,2557.0,0.619724]
[1726931607322,4.45992,2557.6,2557.1,3.91065]
[1726931607510,3.91016,2557.5,2557.0,0.619724]
[1726931607913,3.91016,2557.5,2557.1,0.06159601]
[1726931610187,3.91041,2557.3,2557.1,0.06159601]
[1726931610392,7.82093,2557.3,2556.7,6.19751]
[1726931610592,7.82093,2557.3,2557.2,0.06159044]
[1726931610842,3.91063,2557.2,2556.7,2.2863]
[1726931611138,3.91053,2557.2,2556.7,6.19757]
[1726931612045,3.91045,2557.3,2556.7,6.19757]
[1726931612196,3.91045,2557.3,2556.7,7.20880598]
[1726931612537,3.91045,2557.3,2556.8,3.9111]
[1726931612717,3.91045,2557.3,2556.7,7.20887598]
[1726931612922,7.82094,2557.3,2556.7,7.20887598]
[1726931613289,7.82093,2557.3,2556.7,7.20887598]
[1726931613495,7.82091,2557.3,2556.7,7.20887598]
[1726931613737,3.91071,2557.1,2556.6,0.00394978]
[1726931614293,3.91115,2556.8,2556.6,0.00394978]
[1726931614497,4.46129,2556.7,2556.6,0.00394978]
[1726931617749,4.46129,2556.7,2555.9,3.9503095]
[1726931617750,0.55,2556.4,2555.9,0.0379095]
[1726931618052,3.91191,2556.3,2555.9,0.0379095]
[1726931618336,7.82391,2556.3,2555.9,0.0379095]
[1726931618710,0.55,2556.2,2555.9,0.0379095]
[1726931618906,7.8246,2556.1,2555.9,0.0379095]
[1726931619107,3.91229,2556.1,2555.9,0.0379095]
[1726931619379,4.46236,2556.0,2555.9,0.0379095]
[1726931619708,7.46236,2556.0,2555.9,0.0379095]
[1726931620010,11.18241626,2556.0,2555.9,1e-08]
[1726931620334,12.94457506,2556.0,2555.9,1e-08]
[1726931623754,9.2245188,2556.0,2555.9,1e-08]
[1726931623941,11.02394771,2556.0,2555.9,1e-08]
[1726931626120,6.56158771,2556.0,2555.9,0.06237623]
[1726931626463,3.91209,2556.2,2555.9,0.06119336]
[1726931626666,3.91209,2556.2,2555.6,6.38237]
[1726931626832,5.6739688,2556.4,2555.7,7.88786795]
[1726931627032,5.6739688,2556.4,2555.7,0.06234795]
[1726931627236,5.6739688,2556.4,2555.9,3.91242]
[1726931627466,5.6739688,2556.4,2556.0,0.0621953]
[1726931628266,1.7621588,2556.4,2556.1,2.4695]
[1726931628470,1.7621588,2556.4,2556.2,0.06209007]
[1726931628783,6.24131668,2556.4,2556.2,0.06209007]
[1726931628961,2.32952668,2556.4,2556.2,0.06209007]
[1726931629284,10.40489735,2556.8,2556.3,0.06204269]
[1726931629424,3.0,2556.7,2556.2,3.91204]
[1726931629629,6.91131,2556.7,2556.3,0.06204269]
[1726931630073,6.91131,2556.7,2556.4,0.06203711]
[1726931630257,3.0,2556.7,2556.2,3.91204]
[1726931630425,0.55,2556.6,2556.3,0.06204269]
[1726931630626,0.55,2556.7,2556.4,2.4695]
[1726931630925,0.55,2556.7,2556.5,0.06203153]
[1726931631149,7.46144,2556.6,2556.5,0.06203153]
[1726931631356,7.46144,2556.6,2556.5,1e-08]
[1726931631581,7.46144,2556.6,2556.5,0.05985933]
[1726931631741,7.46144,2556.6,2556.5,0.05985932]
[1726931631952,7.46144,2556.6,2556.1,2.4695]
[1726931632162,0.55,2556.5,2556.1,6.3817]
[1726931632851,0.55,2556.5,2556.1,6.38162]
[1726931633984,0.55,2556.5,2556.2,0.05990741]
[1726931634899,0.55,2556.5,2556.2,3.97185741]
[1726931635481,0.55,2556.5,2556.2,0.05990741]
[1726931637265,1.687284,2556.5,2556.2,0.05990741]
[1726931637478,5.598914,2556.5,2556.2,0.05990741]